Cogmind - Beta 16 @@@ ROGUE MODE // 2025.12.02 @ 09:10:00 Player: Gatamar Result: Destroyed by D-53 Grenadier with Mini Grenade Launcher Performance ------------- Evolutions (0) 0 Regions Visited (2) 400 Robots Destroyed (9) 45 Value Destroyed (270) 270 Prototype IDs (0) 0 Alien Tech Used (0) 0 Bonus (0) 0 TOTAL SCORE: 715 Bonus ------- None Cogmind --------- Core Integrity 0/250 Matter 365/400 Energy 100/100 System Corruption 0% Temperature Cool (53) Movement Walking (120) Location -10/Mines Parts ------- > --- POWER (1) -------- (None) > --- PROPULSION (2) --- Aluminum Leg Aluminum Leg > --- UTILITY (2) ------ Small Storage Unit Medium Matter Pod > --- WEAPON (2) ------- (None) > --- INVENTORY (8) ---- Light Treads Structural Scanner Seismic Detector Datajack Mining Laser Peak State ------------ > --- POWER ------------ Light Nuclear Core > --- PROPULSION ------- Aluminum Leg Aluminum Leg > --- UTILITY ---------- Small Storage Unit Medium Matter Pod > --- WEAPON ----------- Beam Cannon Grenade Launcher > --- INVENTORY -------- Light Treads Structural Scanner Seismic Detector Datajack Mining Laser [Rating: 9] Favorites ----------- Power Light Ion Engine Engine Light Ion Engine Power Core Light Nuclear Core Propulsion Light Treads Treads Light Treads Leg Aluminum Leg Utility Small Storage Unit Storage Small Storage Unit Weapon EM Pulse Gun Energy Gun EM Pulse Gun Energy Cannon Beam Cannon Launcher Grenade Launcher Build | -11 -10 -10 ------- Run | Yrd Mat Min Slots Evolved . | . . . Power . | . . . Propulsion . | . . . Utility . | . . . Weapon . | . . . Parts Attached 13 | 6 3 4 Power 3 | 1 1 1 Engine 2 | 1 1 . Core 1 | . . 1 Reactor . | . . . Propulsion 4 | 2 . 2 Treads 2 | 2 . . Leg 2 | . . 2 Wheel . | . . . Hover . | . . . Flight . | . . . Utility 2 | 1 1 . Device . | . . . Storage 2 | 1 1 . Processor . | . . . Hackware . | . . . Protection . | . . . Artifact . | . . . Weapon 4 | 2 1 1 Energy Gun 2 | 2 . . Energy Cannon 1 | . 1 . Ballistic Gun . | . . . Ballistic Cannon . | . . . Launcher 1 | . . 1 Special Weapon . | . . . Impact Weapon . | . . . Slashing Weapon . | . . . Piercing Weapon . | . . . Special Melee Weapon . | . . . Unidentified Prototypes . | . . . Parts Lost 7 | . 1 6 Power 2 | . . 2 Propulsion 1 | . . 1 Utility . | . . . Weapon 4 | . 1 3 Highest Loss Streak 3 | . 1 3 To Critical Strikes . | . . . Average Backups 5 | 1 5 6 Power . | . . . Propulsion 1 | . 2 1 Utility 1 | . 1 2 Weapon 1 | . 1 1 Tool/Special . | . . . Unused Backups 4 | . 1 3 Power . | . . . Propulsion . | . . . Utility 2 | . . 2 Weapon 1 | . 1 . Tool/Special 1 | . . 1 Average Slot Usage (%) 92 | . 95 87 Engine 10 | . 14 6 Core 2 | . . 7 Treads 22 | . 28 15 Leg 4 | . . 10 Storage 27 | . 27 28 Energy Gun 11 | . 19 . Energy Cannon 8 | . 5 14 Launcher 2 | . . 5 Peak Build Rating 9 | 6 7 9 Average Rating 6 | 4 6 7 On Entrance 4 | . 6 7 Avg Prop Armor Cover (%) . | . . . Naked Turns . | . . . Heaviest Build 18 | 14 16 18 Greatest Support 40 | 40 40 40 Greatest Overweight (x) . | . . . Average Overweight (x) . | . . . Largest Inventory Capacity 8 | 8 8 8 Average Capacity 7 | 7 8 8 Most Carried 7 | 3 7 7 Average Carried 5 | 1 5 6 Final Capacity 8 | 8 8 8 Final Carried 7 | 3 7 5 Class Distribution -------------------- 100% | Mutant Dominant Class ---------------- Mutant | -10/Materials Mutant | -10/Mines Resources | -11 -10 -10 ----------- Run | Yrd Mat Min Matter Collected 425 | 186 199 40 Remotely . | . . . Salvage Created 353 | . 210 143 Parts 18 | . 8 10 Haulers Intercepted . | . . . Recyclers Shooed . | . . . Parts Field Recycled . | . . . Retrieved Matter . | . . . Parts Self-Destructed . | . . . Prevented . | . . . Parts Restored . | . . . Kills | -11 -10 -10 ------- Run | Yrd Mat Min Combat Hostiles Destroyed 9 | . 4 5 Guns 4 | . 4 . Cannons 5 | . . 5 Classes Destroyed 2 | . 1 1 Swarmer 3 | . . 3 Grunt 6 | . 4 2 Best Kill Streak 3 | . 2 3 Combat Bots Only 3 | . 2 3 Max Kills in Single Turn 1 | . 1 1 Gunslinging . | . . . Exploded . | . . . Melee . | . . . Uniques/NPCs Destroyed . | . . . Combat | -11 -10 -10 -------- Run | Yrd Mat Min Hostile Shots Fired 94 | . 41 53 Missed 16 | . 10 6 Hits 78 | . 31 47 Projectile 78 | . 31 47 AOE 6 | . . 6 Critical Strikes 3 | . 1 2 Damage Taken 1013 | . 357 656 Core 251 | . 109 142 Absorbed by Shields . | . . . Core Remaining (%) 100 | 100 . . Volleys Fired 61 | . 27 34 Largest 2 | . 2 2 Hottest 100 | . 80 100 Shots Fired 81 | . 38 43 Gun 42 | . 38 4 Cannon 34 | . . 34 Launcher 5 | . . 5 Special . | . . . Kinetic . | . . . Thermal 34 | . . 34 Explosive 5 | . . 5 Electromagnetic 42 | . 38 4 Robot Hit Streak 4 | . 4 4 Robot Miss Streak 4 | . 2 4 Penetration Max . | . . . Secondary Targets . | . . . Shots Hit Robots 44 | . 22 22 Core Hits 17 | . 9 8 Critical Kills . | . . . Critical Parts Destroyed . | . . . Critical Strikes . | . . . Melee Attacks . | . . . Impact . | . . . Slashing . | . . . Piercing . | . . . Sneak Attacks . | . . . Combat Hostiles . | . . . Follow-up Attacks . | . . . Damage Inflicted 736 | . 283 453 Guns 294 | . 283 11 Cannons 369 | . . 369 Explosions 67 | . . 67 Melee . | . . . Ramming 6 | . . 6 Kinetic . | . . . Thermal 369 | . . 369 Explosive 67 | . . 67 Electromagnetic 294 | . 283 11 Impact . | . . . Slashing . | . . . Piercing . | . . . Highest Corruption . | . . . Average Corruption . | . . . Corruption Purged . | . . . Corruption Blocked . | . . . Overload Shots . | . . . Overflow Damage 9 | . . 9 Projectiles 9 | . . 9 Explosions . | . . . Melee . | . . . Knockbacks . | . . . Impact . | . . . Kinetic . | . . . Secondary . | . . . Self-Inflicted Damage . | . . . Shots . | . . . Rammed 1 | . . 1 Targets Rammed 1 | . . 1 Kicked . | . . . Crushed . | . . . Highest Temperature 397 | . 222 397 Average Temperature 138 | . 107 159 Received Heat Transfer 390 | . 216 174 Effects 1 | . . 1 Interference 1 | . . 1 Siege Activations . | . . . Martial Activations . | . . . Shielding Activations . | . . . Robots Disrupted . | . . . Combat Hostiles . | . . . Robots Corrupted . | . . . Combat Hostiles . | . . . Parts Fried 1 | . 1 . Impact Corruptions . | . . . Robots Melted . | . . . Combat Hostiles . | . . . Parts Melted 2 | . . 2 Heat Transferred 777 | . . 777 Parts Sabotaged . | . . . Parts Stolen . | . . . Parts Stripped . | . . . Power Chain Reactions . | . . . Alert | -11 -10 -10 ------- Run | Yrd Mat Min Maximum Alert Level . | . . . Low Security (%) 100 | 100 100 100 Level 1 . | . . . Level 2 . | . . . Level 3 . | . . . Level 4 . | . . . Level 5 . | . . . High Security . | . . . Max Security . | . . . Peak Influence 55 | . 55 50 Initial . | . . . Average 9 | . 10 10 Influence Increases 256 | . 115 141 Destroy 0b10 Robot/C 180 | . 80 100 Destroy Leader 40 | . 20 20 Disable Machine 15 | . 15 . Destroy Structure 21 | . . 21 Influence Decreases 256 | . 115 141 Time Decay 216 | . 105 111 Lost Part 40 | . 10 30 Squads Dispatched 2 | . 2 . Investigation . | . . . Extermination . | . . . Reinforcement 2 | . 2 . Assault . | . . . Garrison . | . . . Intercept . | . . . Searches Triggered . | . . . Construction Impeded . | . . . Haulers Reinforced . | . . . Active Scanning Responses . | . . . Cargo Convoy Interrupts . | . . . Stealth | -11 -10 -10 --------- Run | Yrd Mat Min Distress Signals . | . . . Communications Jammed . | . . . Distress Signals . | . . . Times Spotted 14 | . 7 7 Peak Tracking Total 3 | . 2 3 Tactical Retreats . | . . . Traps | -11 -10 -10 ------- Run | Yrd Mat Min Traps Triggered . | . . . Indirectly . | . . . Trap Hack Attempts . | . . . Triggered . | . . . Disarmed . | . . . Reprogrammed . | . . . Reused . | . . . Traps Extracted . | . . . Installed . | . . . Triggered . | . . . Machines | -11 -10 -10 ---------- Run | Yrd Mat Min Machines Disabled 1 | . 1 . Max in Single Turn 1 | . 1 . Machines Repaired . | . . . Machines Dismantled . | . . . Machines Sabotaged . | . . . Overloaded Fab Kills . | . . . Hacking | -11 -10 -10 --------- Run | Yrd Mat Min Machines Accessed 1 | . 1 . Terminals 1 | . 1 . Fabricators . | . . . Repair Stations . | . . . Recycling Units . | . . . Scanalyzers . | . . . Garrison Access . | . . . Total Hacks 2 | . 2 . Successful . | . . . Failed 2 | . 2 . Catastrophic . | . . . Database Lockouts . | . . . Manual . | . . . Terminals 2 | . 2 . Fabricators . | . . . Repair Stations . | . . . Recycling Units . | . . . Scanalyzers . | . . . Garrison Access . | . . . Terminal Hacks . | . . . Fabricator Hacks . | . . . Repair Station Hacks . | . . . Recycling Unit Hacks . | . . . Scanalyzer . | . . . Garrison Access Hacks . | . . . Unauthorized Hacks . | . . . Terminals . | . . . Fabricators . | . . . Repair Stations . | . . . Recycling Units . | . . . Scanalyzers . | . . . Garrison Access . | . . . Data Cores Recovered . | . . . Used . | . . . Hacking Detections 1 | . 1 . Full Trace Events . | . . . Feedback Events . | . . . Feedback Blocked . | . . . Robot Schematics Acquired . | . . . Robots Built . | . . . Authchips . | . . . Time . | . . . Total Robot Build Rating . | . . . Part Schematics Acquired . | . . . Parts Built . | . . . Authchips . | . . . Time . | . . . Total Part Build Rating . | . . . Part Studies Acquired . | . . . Parts Repaired . | . . . Time . | . . . Parts Recycled . | . . . Recycled Matter . | . . . Retrieved Matter . | . . . Retrieved Components . | . . . Parts Scanalyzed . | . . . Part Schematics Acquired . | . . . Parts Damaged . | . . . Bothacking | -11 -10 -10 ------------ Run | Yrd Mat Min Used RIF Installer . | . . . Robots Hacked . | . . . Non-combat . | . . . Combat . | . . . Robot Hacks Applied . | . . . Relay Couplers Released . | . . . Fabnet Peak Effective % . | . . . Robots Rewired . | . . . Allies Hacked . | . . . Hacks Repelled . | . . . Allies | -11 -10 -10 -------- Run | Yrd Mat Min Total Allies . | . . . Largest Group . | . . . Highest-Rated Group . | . . . Highest-Rated Ally . | . . . Total Orders . | . . . Ally Attacks . | . . . Total Damage . | . . . Kills . | . . . Allies Corrupted . | . . . Allies Melted . | . . . Intel | -11 -10 -10 ------- Run | Yrd Mat Min Active Infowar (turns) . | . . . Robot Analysis Total . | . . . Derelict Logs Recovered 1 | . . 1 Drone Launches . | . . . Drone Recoveries . | . . . Exploration | -11 -10 -10 ------------- Run | Yrd Mat Min Turns Passed 1101 | 88 603 410 Spaces Moved 606 | 51 324 231 Core 4 | 4 . . Treads 492 | 47 324 121 Legs 110 | . . 110 Wheels . | . . . Hover . | . . . Flight . | . . . Fastest Speed 50 | 50 160 120 Average Speed 152 | 151 160 140 Slowest Speed 160 | 160 160 160 Overloaded Moves . | . . . Propulsion Burnouts . | . . . Robots Hopped . | . . . Potential Cave-ins . | . . . Cave-ins Triggered . | . . . Exploration Rate (%) 29 | 4 51 33 Regions Visited 2 Branch Regions 1 Pre-discovered Areas 1 | . . 1 Known Exits Taken . | . . . Unknown Exits Taken 2 | 1 1 . Scrap Searched . | . . . Spaces Dug . | . . . Terrain Destroyed 42 | . . 42 Melee . | . . . Projectile . | . . . AOE 42 | . . 42 Terrain Rammed . | . . . Walls Destroyed . | . . . Machines Disabled . | . . . Actions | -11 -10 -10 --------- Run | Yrd Mat Min Total 700 | 59 370 271 Wait 10 | . 9 1 Move 604 | 50 323 231 Hop . | . . . Pick Up 9 | 3 6 . Fast Attach 9 | 6 2 1 Attach 2 | . . 2 Detach . | . . . Swap 2 | . 1 1 Drop 2 | . 2 . Fire 61 | . 27 34 Melee . | . . . Ram . | . . . Kick . | . . . Crush 1 | . . 1 Escape Stasis . | . . . Rewire . | . . . Trap . | . . . Miscellaneous . | . . . Route ------- -11/Scrapyard -10/Materials (discovered 2 exits: [*Mat] / [*Min]) -10/Mines History --------- Turn | Location | Event 5 | -11/Scrapyard | Discovered new exit (range 16) 89 | -11/Scrapyard | Entered Materials 300 | -10/Materials | Build established: Mutant 458 | -10/Materials | Discovered new exit (range 11) 649 | -10/Materials | Discovered new exit (range 6) 692 | -10/Materials | Entered Mines 702 | -10/Mines | Core integrity fell below 50% 828 | -10/Mines | Learned location of Storage (-9) 872 | -10/Mines | Core integrity fell below 20% 972 | -10/Mines | Assembled infested the area 1102 | -10/Mines | Destroyed by D-53 Grenadier with Mini Grenade Launcher Last Messages --------------- 00873_ Critical hit (Burn: +37). 00877_ Overheating: System interference. 00877_ Beam Cannon temporarily disabled. 00889_ G-47 Trooper destroyed. 00898_ Acquired Lgt. Nuclear Core. 00967_ K-01 Serf collects debris. 00972_ ALERT: Infestation in the mines, dispatching Demolisher response squad. 00972_ Acquired 40 matter. 00987_ K-01 Serf collects debris. 01005_ The unstable cave ceiling collapses. 01018_ K-01 Serf collects debris. 01097_ C-45 Heavy ARC bursts open, deploying its payload. 01097_ D-53 Grenadier unfolds itself. 01097_ Destroyed Sml. Matter Pod. 01099_ T-07 Excavator destroyed. 01101_ Lgt. Nuclear Core destroyed. 01101_ Grenade Launcher destroyed. 01102_ Beam Cannon destroyed. Map ----- +----------------------------------------------------+ | ???????????# % #??????? | | ???????????# #### #########??????? | | ????????????????# #??????????????? | | ????????????????# #??????????????? | | ????????????????# #??????????????? | | ????????????????# #??????????????? | | ????????????????# #??????????????? | | ????????????????# #??????????????? | | ????????????????# ########???????? | | ????????????????# #???????? | | ????????????????## ##### #???????? | | ?????????????????# #???? #???????? | | ?????????????????# #???? ##??????? | | ?????????????????# ##?## #??????? | | ??????????????#### ## #??????? | | ?????????????## # #??????? | | ?????????????# #??????? | | ?????????????# %d ##?????? | | ?????????????## d ##????? | | ??????????????# #????? | | ??????????????# #????? | | ??????####?????# ##???? | | ??????# ####???## #???? | | ??????# ##???## #???? | | ??????# ##???## #???? | | ??????# #????##k @ #???? | | ??????## ##????# #??? | | ???????## ##???# #??? | | ???????## ###?# ##??? | | ??????## ### t## ##???? | | ?????## ## ###????? | | ???### ## ## #??????? | | ??## ## ## ## ##?????? | | ??# ###### ### #?????? | | ??# # #????####?### ## #?????? | | ??## ## #??????????## #? #?????? | | ???##### #?????????## ## #?????? | | ????#### #????????## ##????? | | ???## ##??????## [ #????? | | ??## ##????## %! #????? | | ??# ###### = #????? | | ??# ##???? | | ### % ##??? | | # *## !####### ## ##?? | | #### #?????# #?# #?? | | ##?## ##?????# ### #?? | | #?##[ ##?????# % #?? | | #?# #?????# ### ##?? | | ##?# |!####### #?## #??? | | #??## ### ## #???# ##??? | +----------------------------------------------------+ Best States ------------- Heat Dissipation 25 Energy Generation 14 Energy Capacity 250 Matter Stores 400 Matter Capacity 400 Sight Range 16 Terrain Scan Density 10 Evasion (%) 50 Recoil Reduction 2 Item Schematics ----------------- None Robot Schematics ------------------ None Fabricated ------------ Nothing Repaired ---------- Nothing Studied --------- None Alien Tech Used ----------------- None Achievements -------------- None Challenges ------------ None Game ------ Seed LightAntigravInterface Manual? 0 Play Time 00:09:32 Cumulative 15.4 hours Start 2025.12.02 @ 09:02:15 End 2025.12.02 @ 09:10:00 Sessions 1 Manual Loads 0 Difficulty Rogue Special Mode None Game No. 44 Rogue 44 Adventurer 0 Explorer 0 Win Type - Total 0 Types 0/0/0/0/0/0/0/0/0/0 Lore% 17 Gallery% 20 Achievement% 14 Wizard Run 0 Options --------- Layout 1 ASCII 0 Keyboard 0 Movement Numpad Keybinds 0 Fullscreen 1 Font 32/SmallcapsGlow Map View 50x35 Zoom Use 0% Tactical HUD 1 Map Filters NONE Filters NONE Steam 1 RUN: bca8f416-4199-4106-b0f6-8020660a85b5